fUSD/lending_fUSD_20241008
["ID","MTS","AMOUNT","RATE_DAILY","PERIOD"]
[340049570,1728393832712,-50000.0,0.00038,38]
[340049571,1728393832735,-500.0,0.00038,120]
[340049572,1728393832757,-2000.0,0.00038255,120]
[340049573,1728393832779,-999.0,0.00038356,120]
[340049574,1728393832801,-471.01570392,0.0003836,120]
[340049575,1728393832824,-471.01570392,0.0003836,120]
[340049576,1728393832846,-471.01570392,0.0003836,120]
[340049577,1728393832870,-471.01570392,0.0003836,120]
[340049578,1728393832892,-471.01570392,0.0003836,120]
[340049579,1728393832915,-471.01570392,0.0003836,120]
[340049580,1728393832938,-471.01570392,0.0003836,120]
[340049581,1728393832960,-471.01570392,0.0003836,120]
[340049582,1728393832983,-471.01570392,0.0003836,120]
[340049583,1728393833082,-471.01570392,0.0003836,120]
[340049584,1728393833105,-471.01570392,0.0003836,120]
[340049585,1728393833127,-471.01570392,0.0003836,120]
[340049586,1728393833148,-471.01570392,0.0003836,120]
[340049587,1728393833172,-471.01570392,0.0003836,120]
[340049588,1728393833195,-471.01570392,0.0003836,120]
[340049589,1728393833217,-471.01570392,0.0003836,120]
[340049590,1728393833239,-471.01570392,0.0003836,120]
[340049591,1728393833261,-471.01570392,0.0003836,120]
[340049592,1728393833283,-471.01570392,0.0003836,120]
[340049593,1728393833304,-471.51,0.0003836,120]
[340049594,1728393833327,-658.92659408,0.0003836,120]
[340049595,1728393833353,-658.92659408,0.0003836,120]
[340049596,1728393833375,-658.92659408,0.0003836,120]
[340049597,1728393833403,-658.92659408,0.0003836,120]
[340049598,1728393833426,-658.92659408,0.0003836,120]
[340049599,1728393833449,-658.92659408,0.0003836,120]
[340049600,1728393833474,-658.92659408,0.0003836,120]
[340049601,1728393833497,-658.92659408,0.0003836,120]
[340049602,1728393833520,-658.92659408,0.0003836,120]
[340049603,1728393833544,-658.92659408,0.0003836,120]
[340049604,1728393833568,-658.92659408,0.0003836,120]
[340049605,1728393833591,-658.92659408,0.0003836,120]
[340049606,1728393833614,-658.92659408,0.0003836,120]
[340049607,1728393833638,-658.92659408,0.0003836,120]
[340049608,1728393833662,-658.92659408,0.0003836,120]
[340049609,1728393833688,-658.92659408,0.0003836,120]
[340049610,1728393833718,-658.92659408,0.0003836,120]
[340049611,1728393833752,-658.92659408,0.0003836,120]
[340049612,1728393833788,-658.92659408,0.0003836,120]
[340049613,1728393833824,-659.42,0.0003836,120]
[340049614,1728393833860,-1048.67555022,0.0003836,120]
[340049615,1728393833891,-1048.67555022,0.0003836,120]
[340049616,1728393833924,-1048.67555022,0.0003836,120]
[340049617,1728393833962,-1048.67555022,0.0003836,120]
[340049618,1728393833992,-1048.67555022,0.0003836,120]
[340049619,1728393834028,-1048.67555022,0.0003836,120]
[340049620,1728393834064,-1048.67555022,0.0003836,120]
[340049621,1728393834094,-1048.67555022,0.0003836,120]
[340049622,1728393834123,-1048.67555022,0.0003836,120]
[340049623,1728393834156,-1048.67555022,0.0003836,120]
[340049624,1728393834187,-1048.67555022,0.0003836,120]
[340049625,1728393834217,-1048.67555022,0.0003836,120]
[340049626,1728393834250,-1048.67555022,0.0003836,120]
[340049627,1728393834280,-1048.67555022,0.0003836,120]
[340049628,1728393834309,-1048.67555022,0.0003836,120]
[340049629,1728393834340,-1048.67555022,0.0003836,120]
[340049630,1728393834369,-1048.67555022,0.0003836,120]
[340049631,1728393834398,-1048.67555022,0.0003836,120]
[340049632,1728393834428,-1048.67555022,0.0003836,120]
[340049633,1728393834457,-1049.17,0.0003836,120]
[340049634,1728393834491,-1000.0,0.00038493,120]
[340049635,1728393834522,-1700.0,0.000388,120]
[340049636,1728393834554,-2000.0,0.00038895,120]
[340049637,1728393834694,-50000.0,0.00039,39]
[340049638,1728393834717,-500.0,0.00039034,60]
[340049639,1728393834741,-999.0,0.00039452,120]
[340049640,1728393834763,-2000.0,0.00039534,120]
[340049641,1728393834786,-119713.75907051,0.000398,120]
[340049642,1728393834808,-69416.16007601,0.000398,120]
[340049643,1728393834832,-5050.0,0.000399,33]
[340049644,1728393834858,-50000.0,0.0004,30]
[340049645,1728393834883,-50000.0,0.0004,40]
[340049646,1728393834905,-402.0222562,0.0004,30]
[340049647,1728393834928,-1066.03774453,0.0004,120]
[340049648,1728393834951,-986.19170942,0.0004,60]
[340049649,1728393834974,-1000.0,0.0004,120]
[340049650,1728393834996,-2000.0,0.0004,120]
[340049651,1728393835020,-2000.0,0.0004,60]
[340049652,1728393835043,-458.45981818,0.0004,120]
[340049653,1728393835066,-153.00954134,0.0004,30]
[340049654,1728393835090,-173.82,0.0004,120]
[340049655,1728393835112,-320.2418552,0.0004,120]
[340049656,1728393835135,-1000.0,0.0004,35]
[340049657,1728393835159,-157.3,0.0004,120]
[340049658,1728393835182,-2000.0,0.000401,120]
[340049659,1728393835204,-500.0,0.0004013,60]
[340049660,1728393835226,-2000.0,0.00040174,120]
[340049661,1728393835249,-221.17,0.00040225,120]
[340049662,1728393835274,-2413.16821587,0.000403,33]
[340049663,1728393835297,-999.0,0.00040547,120]
[340049664,1728393835320,-2000.0,0.00040813,120]
[340049665,1728393835342,-156.32137148,0.000409,120]
[340049666,1728393835365,-156.32137143,0.000409,120]
[340049667,1728393835390,-50000.0,0.00041,31]
[340049668,1728393835414,-50000.0,0.00041,41]
[340049669,1728393835437,-630.0,0.00041,120]
[340049670,1728393835460,-695.0,0.00041,120]
[340049671,1728393835487,-500.0,0.00041,120]
[340049672,1728393835513,-500.0,0.00041,120]
[340049673,1728393835543,-500.0,0.00041,120]
[340049674,1728393835572,-833.0,0.00041,120]
[340049675,1728393835596,-500.0,0.00041,120]
[340049676,1728393835619,-500.0,0.00041,120]
[340049677,1728393835642,-500.0,0.00041,120]
[340049678,1728393835665,-500.0,0.00041,120]
[340049679,1728393835688,-500.0,0.00041,120]
[340049680,1728393835712,-500.0,0.00041,120]
[340049681,1728393835735,-500.0,0.00041,120]
[340049682,1728393835758,-500.0,0.00041,120]
[340049683,1728393835781,-676.0,0.00041,120]
[340049684,1728393835804,-13392.81577879,0.00041,120]
[340049685,1728393835828,-537.06160452,0.00041226,60]
[340049686,1728393835851,-156.32137143,0.0004127,120]
[340049687,1728393835875,-2000.0,0.00041453,120]
[340049688,1728393835900,-999.0,0.00041643,120]
[340049689,1728393835926,-165.49,0.000418,31]
[340049690,1728393835954,-165.49,0.000418,31]
[340049691,1728393835981,-50000.0,0.00042,32]
[340049692,1728393836084,-50000.0,0.00042,42]
[340049693,1728393836108,-1000.0,0.00042,120]
[340049694,1728393836130,-212.56211052,0.00042,50]
[340049695,1728393836152,-388.36307157,0.00042,55]
[340049696,1728393836175,-2000.0,0.00042093,120]
[340049697,1728393836199,-150.0,0.00042268,120]
[340049698,1728393836221,-2000.0,0.00042732,120]
[340049699,1728393836244,-999.0,0.00042739,120]
[340049700,1728393836267,-221.17,0.00042809,120]
[340049701,1728393836290,-197.03458575,0.000429,60]
[340049702,1728393836311,-173.28,0.000429,30]
[340049703,1728393836338,-50000.0,0.00043,33]
[340049704,1728393836363,-50000.0,0.00043,43]
[340049705,1728393836385,-450.0,0.00043,120]
[340049706,1728393836407,-185.44011815,0.00043,120]
[340049707,1728393836429,-12453.69272499,0.00043,120]
[340049708,1728393836452,-2325.16418105,0.00043,120]
[340049709,1728393836477,-1063.30995992,0.00043,30]
[340049710,1728393836500,-2000.0,0.00043372,120]
[340049711,1728393836525,-151.100807,0.00043498,120]
[340049712,1728393836548,-157.100807,0.00043798,120]
[340049713,1728393836570,-173.08,0.000438,30]
[340049714,1728393836594,-799.47584639,0.00043835,120]
[340049715,1728393836616,-2000.0,0.00043835,120]
[340049716,1728393836638,-156.32137143,0.00043955,120]
[340049717,1728393836662,-50000.0,0.00044,34]
[340049718,1728393836686,-50000.0,0.00044,44]
[340049719,1728393836709,-1000.0,0.00044,120]
[340049720,1728393836732,-294.00715913,0.00044,30]
[340049721,1728393836756,-501.361018,0.00044,57]
[340049722,1728393836779,-2000.0,0.00044011,120]
[340049723,1728393836803,-151.100807,0.00044198,120]
[340049724,1728393836825,-326.22156927,0.00044246,120]
[340049725,1728393836848,-544.40440191,0.0004437,90]
[340049726,1728393836871,-264.78,0.00044384,120]
[340049727,1728393836894,-333.95,0.00044384,120]
[340049728,1728393836918,-2000.0,0.00044651,120]
[340049729,1728393836941,-44000.0,0.000447,120]
[340049730,1728393836964,-157.100807,0.00044798,120]
[340049731,1728393836988,-163.098587,0.000448,30]
[340049732,1728393837014,-478.52895054,0.000448,120]
[340049733,1728393837037,-16659.403175,0.000448,30]
[340049734,1728393837059,-151.15376,0.000448,30]
[340049735,1728393837081,-44102.53576417,0.000448,120]
[340049736,1728393837104,-604.35997662,0.000449,30]
[340049737,1728393837126,-664.77265878,0.000449,120]
[340049738,1728393837149,-1000.0,0.00044973,120]
[340049739,1728393837174,-1000.0,0.00044999,120]
[340049740,1728393837200,-50000.0,0.00045,35]
[340049741,1728393837224,-50000.0,0.00045,45]
[340049742,1728393837246,-383.89924114,0.00045,120]
[340049743,1728393837268,-881.67527457,0.00045,120]
[340049744,1728393837365,-314.77086317,0.00045,30]
[340049745,1728393837390,-212.27434465,0.00045,120]
[340049746,1728393837413,-1042.34367321,0.00045,120]
[340049747,1728393837435,-507.62222364,0.00045,120]
[340049748,1728393837459,-1228.0,0.00045,35]
[340049749,1728393837485,-5000.0,0.00045,120]
[340049750,1728393837507,-466.0,0.00045,120]
[340049751,1728393837530,-600.0,0.00045,120]
[340049752,1728393837553,-391.0,0.00045,120]
[340049753,1728393837577,-10027.13775465,0.00045,120]
[340049754,1728393837600,-151.100807,0.00045198,120]
[340049755,1728393837623,-2000.0,0.00045291,120]
[340049756,1728393837647,-221.17,0.00045393,120]
[340049757,1728393837670,-150.0,0.000454,120]
[340049758,1728393837694,-157.100807,0.00045498,120]
[340049759,1728393837717,-364.77186126,0.000456,120]
[340049760,1728393837740,-151.100807,0.00045798,120]
[340049761,1728393837763,-150.0,0.00045848,120]
[340049762,1728393837785,-2000.0,0.0004593,120]
[340049763,1728393837811,-50000.0,0.00046,36]
[340049764,1728393837835,-50000.0,0.00046,46]
[340049765,1728393837859,-398.5144771,0.00046,120]
[340049766,1728393837882,-1000.0,0.00046,30]
[340049767,1728393837906,-485.58164407,0.00046,120]
[340049768,1728393837931,-417.48646176,0.00046,30]
[340049769,1728393837953,-5000.0,0.00046,120]
[340049770,1728393837975,-2098.29687977,0.00046,120]
[340049771,1728393837998,-157.100807,0.00046198,120]
[340049772,1728393838020,-565.03678058,0.000463,120]
[340049773,1728393838043,-188.238342,0.00046308,30]
[340049774,1728393838066,-168.65437,0.00046308,30]
[340049775,1728393838089,-151.100807,0.00046498,120]
[340049776,1728393838112,-16000.0,0.000465,120]
[340049777,1728393838134,-288.14318198,0.000465,120]
[340049778,1728393838158,-380.43294327,0.00046542,120]
[340049779,1728393838182,-320.104724,0.00046558,120]
[340049780,1728393838207,-2000.0,0.0004657,120]
[340049781,1728393936722,150.0,9.888e-05,2]
[340049782,1728393936743,0.60896552,9.888e-05,2]
[340049783,1728393955051,149.39103448,6.94e-05,2]
[340049784,1728393955072,150.0,6.94e-05,2]
[340049785,1728393955095,697.71896552,6.94e-05,2]
[340049788,1728394121240,150.0,0.0001,2]
[340049789,1728394121263,28.83,0.0001,2]
[340049807,1728394231933,-659.0,0.00010582,2]
[340049808,1728394231943,-2531.6686,0.0001088,2]
[340049809,1728394231995,-15965.43189126,0.0001088,2]
[340049813,1728394238036,-1585.70646,0.0001088,2]
[340049814,1728394238203,-10001.59536035,0.0001088,2]
[340049815,1728394238214,-31999.52074634,0.0001088,2]
[340049816,1728394238298,-142.91,0.0001088,2]
[340049920,1728394240066,-6429.58051061,0.0001088,2]
[340049921,1728394240178,-315.005917,0.0001088,2]
[340049951,1728394243032,-392.29490377,0.0001088,2]
[340049952,1728394243090,-261.4769987,0.0001088,2]
[340049953,1728394243152,-66736.40745177,0.0001088,2]
[340049954,1728394243164,-44948.592,0.0001088,2]
[340049955,1728394243210,-832.0929841,0.0001088,2]
[340049956,1728394243221,-2396.5336603,0.0001088,2]
[340049957,1728394243235,-12611.58875453,0.0001088,2]
[340049958,1728394243246,-1041.4084361,0.0001088,2]
[340049959,1728394243256,-1330.84696857,0.0001088,2]
[340049960,1728394243267,-12457.26988001,0.0001088,2]
[340049961,1728394243278,-680.3546727,0.0001088,2]
[340049962,1728394243288,-764.825,0.0001088,2]
[340049963,1728394243300,-11886.30117644,0.0001088,2]
[340049964,1728394243311,-703.16814313,0.0001088,2]
[340049965,1728394243322,-464.504,0.0001088,2]
[340049966,1728394243333,-330412.10985855,0.0001088,2]
[340049967,1728394243342,-2821.39440246,0.00010899,2]
[340049968,1728394243350,-5223.062,0.000109,2]
[340049969,1728394243359,-211.80730258,0.000109,2]
[340049970,1728394243368,-197.53773092,0.000109,2]
[340049971,1728394243377,-195.47382231,0.000109,2]
[340049972,1728394243386,-163.60863471,0.00010958,2]
[340049973,1728394243395,-200.0,0.00010959,2]
[340049974,1728394243405,-186.78,0.00010959,2]
[340049975,1728394243414,-372.75,0.00010959,2]
[340049976,1728394243424,-500.0,0.00010973,2]
[340049977,1728394243433,-500.9305959,0.00010973,2]
[340049978,1728394243442,-501.22250506,0.00010973,2]
[340049979,1728394243451,-3347.0,0.00010976,2]
[340049980,1728394243460,-657.752,0.00010976,2]
[340049981,1728394243469,-1198.503,0.00010976,2]
[340049982,1728394243478,-808.0,0.00010976,2]
[340049983,1728394243487,-172.4,0.00010976,2]
[340049984,1728394243496,-1297.0,0.00010976,2]
[340049985,1728394243505,-449.0,0.00010976,2]
[340049986,1728394243514,-626.0,0.00010976,2]
[340049987,1728394243524,-811.0,0.00010976,2]
[340049988,1728394243534,-150.0,0.00010976,2]
[340049989,1728394243543,-534.891,0.00010976,2]
[340049990,1728394243553,-157.383,0.00010976,2]
[340049991,1728394243562,-74501.55933589,0.00011,2]
[340049992,1728394243571,-499.99,0.00011,2]
[340049993,1728394243581,-230194.03918585,0.00011,2]
[340049994,1728394243592,-344.93335345,0.00011,2]
[340049995,1728394243604,-1806.49803386,0.00011,2]
[340049996,1728394243615,-294.14994472,0.00011,2]
[340049997,1728394243626,-21220.78577,0.00011,2]
[340049998,1728394243638,-34426.799998,0.00011,2]
[340050012,1728394246023,-265.509,0.00010976,2]
[340050013,1728394246032,-5860.42567891,0.00011,2]
[340050014,1728394246043,-264.208,0.00011,2]
[340050015,1728394246137,-291.09122005,0.00011,2]
[340050016,1728394246149,-561.69324015,0.00011,2]
[340050017,1728394246161,-4836.90469783,0.00011,2]
[340050018,1728394246196,-344.831931,0.00011,2]
[340050019,1728394246208,-3169.18151143,0.00011,2]
[340050020,1728394246261,-281.818872,0.00011,2]
[340050021,1728394246272,-629.91786176,0.00011,2]
[340050022,1728394246283,-1516.08396786,0.00011,2]
[340050023,1728394246294,-300.0,0.00011,2]
[340050024,1728394246323,-389.63124367,0.00011,2]
[340050025,1728394246334,-2570.41893268,0.00011,2]
[340050026,1728394246347,-719.23999998,0.00011,2]
[340050027,1728394246385,-3871.59662795,0.00011,2]
[340050030,1728394246397,-4336.80998317,0.00011,2]
[340050031,1728394344554,663.81,9.444e-05,2]
[340050032,1728394907942,150.0,9.267e-05,2]
[340050033,1728394907968,150.0,9.267e-05,2]
[340050034,1728394907991,150.0,9.267e-05,2]
[340050035,1728394908014,150.0,9.267e-05,2]
[340050036,1728394908037,59.94,9.267e-05,2]
[340050037,1728395128692,-6246.2922,0.0001068,2]
[340050038,1728395147908,253.7078,0.00010434,2]
[340050039,1728395424663,277.93,9.13e-05,2]
[340050040,1728395424684,150.0,9.13e-05,2]
[340050041,1728395424706,150.0,9.13e-05,2]
[340050042,1728395424726,76.87,9.13e-05,2]
[340050055,1728395432150,-904.78996583,0.00010434,2]
[340050056,1728395432159,-240.20457276,0.000109,2]
[340050057,1728395432171,-303.54357154,0.000109,2]
[340050058,1728395432180,-2976.05957243,0.000109,2]
[340050059,1728395432191,-142.9248299,0.000109,2]
[340050060,1728395432200,-191.58264272,0.00010959,2]
[340050061,1728395432212,-8.41735728,0.00010959,2]
[340050062,1728395432222,-158.59,0.00010959,2]
[340050063,1728395432233,-171.39,0.00010959,2]
[340050064,1728395432242,-500.0,0.00010973,2]
[340050065,1728395432251,-473.44858279,0.00010973,2]
[340050066,1728395432261,-300.0,0.00010987,2]
[340050067,1728395432270,-1297.0,0.00010988,2]
[340050068,1728395432279,-449.0,0.00010988,2]
[340050069,1728395432290,-811.0,0.00010988,2]
[340050070,1728395432299,-626.0,0.00010988,2]
[340050071,1728395432308,-808.0,0.00010988,2]
[340050072,1728395432317,-150.0,0.00010988,2]
[340050073,1728395432326,-250.0,0.00010988,2]
[340050074,1728395432336,-150.0,0.00010988,2]
[340050075,1728395432345,-219.0,0.00010988,2]
[340050076,1728395432354,-250.0,0.00010988,2]
[340050077,1728395432363,-264.337,0.00010988,2]
[340050078,1728395432372,-268.935,0.00010988,2]
[340050079,1728395432381,-1083.0,0.00010988,2]
[340050080,1728395432389,-172.967,0.00010988,2]
[340050081,1728395432398,-163.762,0.00010988,2]
[340050082,1728395432408,-285.807,0.00010988,2]
[340050083,1728395432417,-150.0,0.00010988,2]
[340050084,1728395432426,-160.62877041,0.00010999,2]
[340050085,1728395432434,-67464.35756781,0.00011,2]
[340050086,1728395432444,-227210.54686969,0.00011,2]
[340050087,1728395432455,-834.81196786,0.00011,2]
[340050088,1728395432473,-16782.97160698,0.00011,2]
[340050089,1728395432483,-295382.71792132,0.00011,2]
[340050090,1728395432494,-54713.75596211,0.00011,2]
[340050093,1728395432506,-184866.9873352,0.00011,2]
[340050095,1728395432517,-566.54007379,0.00011,2]
[340050097,1728395432528,-1771.72149387,0.00011,2]
[340050098,1728395432542,-6587.94706062,0.00011,2]
[340050099,1728395432560,-6597.97245359,0.00011,2]
[340050105,1728395438271,-1682.0427743,0.00011,2]
[340050106,1728395438438,-1075.33586333,0.00011,2]
[340050107,1728395438576,-2780.22,0.00011,2]
[340050108,1728395438587,-253.039,0.00011,2]
[340050109,1728395438598,-298.25,0.00011,2]
[340050203,1728395440194,-151.102,0.00010988,2]
[340050204,1728395440204,-1531.09464352,0.00011,2]
[340050205,1728395440216,-494.09234019,0.00011,2]
[340050206,1728395440257,-1517.98800358,0.00011,2]
[340050223,1728395443233,-384.576,0.00011,2]
[340050224,1728395443246,-61672.87949319,0.00011,2]
[340050225,1728395443546,-197.46335278,0.00011,2]
[340050231,1728395446165,-152.21,0.00010988,2]
[340050232,1728395446174,-299.887,0.00010988,2]
[340050233,1728395446184,-88.51930526,0.00010988,2]
[340050234,1728395446198,-80.32369474,0.00010988,2]
[340050235,1728395446207,-407.61954222,0.00011,2]
[340050236,1728395446298,-750.0,0.00011,2]
[340050237,1728395446312,-1301.82344774,0.00011,2]
[340050238,1728395446399,-250.453143,0.00011,2]
[340050240,1728395447795,-167.898229,0.00010671,2]
[340050241,1728395641766,-264.4083,0.00010745,2]
[340050242,1728395872265,150.0,0.00010112,2]
[340050243,1728395953725,150.0,0.00010099,2]
[340050244,1728395953745,100.0,0.00010099,2]
[340050245,1728395975338,150.0,0.00010113,2]
[340050246,1728395975358,50.0,0.00010113,2]
[340050247,1728396009448,150.0,0.00010148,2]
[340050248,1728396009468,100.0,0.00010148,2]
[340050249,1728396081206,150.0,0.00010163,2]
[340050250,1728396081236,150.0,0.00010163,2]
[340050251,1728396081266,150.0,0.00010163,2]
[340050252,1728396081296,150.0,0.00010163,2]
[340050253,1728396081324,150.0,0.00010163,2]
[340050254,1728396081352,100.09,0.00010163,2]
[340050255,1728396093306,150.0,8.251e-05,2]
[340050256,1728396093328,150.0,8.251e-05,2]
[340050257,1728396093349,150.0,8.251e-05,2]
[340050258,1728396093370,150.0,8.251e-05,2]
[340050259,1728396093391,110.15,8.251e-05,2]
[340050260,1728396095007,-710.15,0.00010514,2]
[340050261,1728396122605,300.0,0.00010198,2]
[340050262,1728396158630,150.0,0.00010167,2]
[340050263,1728396158654,23.74,0.00010167,2]
[340050264,1728396234882,150.0,0.00010184,2]
[340050265,1728396234905,150.0,0.00010184,2]
[340050266,1728396234926,150.0,0.00010184,2]
[340050267,1728396234946,150.0,0.00010184,2]
[340050268,1728396234970,8469.41,0.00010184,2]
[340050269,1728396263953,234.3,0.00010184,2]
[340050270,1728396275887,-510.11,0.00010277,2]
[340050271,1728396459521,395.15,0.00010181,2]
[340050274,1728396562733,250.0,0.00010227,2]
[340050275,1728396579960,-250.0,0.0001027,2]
[340050276,1728396606912,-1073.514474,0.00010844,2]
[340050277,1728396614470,-553.44445762,0.00010362,2]
[340050287,1728396632362,-257.89,0.00010297,2]
[340050288,1728396632372,-446.55554238,0.00010362,2]
[340050289,1728396632382,-150.0,0.000109,2]
[340050290,1728396632392,-139.04308487,0.000109,2]
[340050291,1728396632403,-109.72755789,0.000109,2]
[340050292,1728396632415,-174.06460705,0.000109,2]
[340050293,1728396632424,-337.01326654,0.000109,2]
[340050294,1728396632434,-195.05112054,0.000109,2]
[340050295,1728396632443,-1295.828,0.00010915,2]
[340050296,1728396632453,-372.437,0.00010916,2]
[340050297,1728396632463,-167.898229,0.00010938,2]
[340050298,1728396632473,-154.74273261,0.0001095,2]
[340050299,1728396632482,-300.0,0.0001095,2]
[340050300,1728396632492,-150.0,0.00010951,2]
[340050301,1728396632501,-277.17,0.00010951,2]
[340050302,1728396632510,-1003.2,0.00010951,2]
[340050303,1728396632520,-200.0,0.00010959,2]
[340050304,1728396632529,-162.36,0.00010959,2]
[340050305,1728396632538,-250.0,0.00010959,2]
[340050306,1728396632548,-177.44,0.00010959,2]
[340050307,1728396632557,-499.99,0.00010959,2]
[340050308,1728396632567,-2042.81,0.00010959,2]
[340050309,1728396632577,-171.22,0.00010969,2]
[340050310,1728396632586,-171.68678627,0.00010973,2]
[340050311,1728396632596,-243.78,0.00010973,2]
[340050312,1728396632605,-170.966,0.00010988,2]
[340050313,1728396632614,-152.172,0.00010988,2]
[340050314,1728396632624,-152.219,0.00010988,2]
[340050315,1728396632634,-449.0,0.00010988,2]
[340050316,1728396632643,-811.0,0.00010988,2]
[340050317,1728396632652,-626.0,0.00010988,2]
[340050318,1728396632661,-160.62877041,0.00010999,2]
[340050319,1728396632671,-500.0,0.00010999,2]
[340050320,1728396632680,-395.2882154,0.00010999,2]
[340050322,1728396632690,-500.0,0.00010999,2]
[340050324,1728396632699,-500.0,0.00010999,2]
[340050326,1728396632708,-154.048,0.00011,2]
[340050327,1728396632717,-47535.48202333,0.00011,2]
[340050330,1728396632732,-81256.23811037,0.00011,2]
[340050331,1728396632743,-11978.11,0.00011,2]
[340050332,1728396632758,-286.18192272,0.00011,2]
[340050334,1728396632769,-4896.94500001,0.00011,2]
[340050336,1728396632780,-15100.48,0.00011,2]
[340050338,1728396632792,-8732.73311404,0.00011,2]
[340050340,1728396638464,-46365.94278028,0.00011,2]
[340050341,1728396638706,-31669.56263439,0.00011,2]
[340050436,1728396640520,-267.74750415,0.00011,2]
[340050437,1728396640628,-252.1052606,0.00011,2]
[340050438,1728396640639,-628.52640076,0.00011,2]
[340050439,1728396640729,-1266.7284,0.00011,2]
[340050449,1728396643507,-333.514965,0.00011,2]
[340050450,1728396643517,-260380.47280073,0.00011,2]
[340050451,1728396643528,-4088.37,0.00011,2]
[340050452,1728396643608,-1317.925,0.00011,2]
[340050453,1728396643707,-504183.99999979,0.00011,2]
[340050456,1728396646381,-270.25,0.00011,2]
[340050457,1728396646474,-3748.12807891,0.00011,2]
[340050458,1728396646595,-4784.0,0.00011,2]
[340050478,1728396650262,600.0,0.000105,3]
[340050479,1728396652362,1200.0,0.000106,3]
[340050480,1728396654483,1800.0,0.000107,3]
[340050481,1728396656681,2400.0,0.000108,3]
[340050482,1728396658715,3100.0,0.000109,3]
[340050483,1728396672649,150.0,9.52e-05,2]
[340050484,1728396672670,150.0,9.52e-05,2]
[340050485,1728396672693,150.0,9.52e-05,2]
[340050486,1728396672714,150.0,9.52e-05,2]
[340050487,1728396672734,107.58,9.52e-05,2]
[340050488,1728396806061,150.0,9.444e-05,2]
[340050489,1728396806083,150.0,9.444e-05,2]
[340050490,1728396806103,150.0,9.444e-05,2]
[340050491,1728396806123,50.0,9.444e-05,2]
[340050492,1728397028507,-1052.2896883,0.00010644,2]
[340050493,1728397152841,150.0,8.301e-05,2]
[340050494,1728397152866,150.0,8.301e-05,2]
[340050495,1728397152887,150.0,8.301e-05,2]
[340050496,1728397152913,260.15,8.301e-05,2]
[340050497,1728397152941,31.12,8.301e-05,2]
[340050498,1728397176764,358.72,0.00010196,2]
[340050499,1728397283221,208.84,0.00010145,2]
[340050500,1728397320123,200.0,0.00010145,2]
[340050501,1728397351995,1028.44,0.00010146,2]
[340050502,1728397407664,500.0,0.00010065,2]
[340050503,1728397439066,180.86,0.00010153,2]
[340050504,1728397439303,180.86,0.00010156,2]
[340050505,1728397439577,180.86,0.00010159,2]
[340050506,1728397439796,180.86,0.00010161,2]
[340050507,1728397440110,180.86,0.00010164,2]
[340050508,1728397440284,180.86,0.00010167,2]
[340050509,1728397440635,180.86,0.00010169,2]
[340050510,1728397440735,180.86,0.00010172,2]
[340050511,1728397441003,180.86,0.00010175,2]
[340050512,1728397441259,180.86,0.00010178,2]
[340050513,1728397441488,180.86,0.0001018,2]
[340050514,1728397441738,180.86,0.00010183,2]
[340050515,1728397441961,180.86,0.00010186,2]
[340050516,1728397442435,180.86,0.00010188,2]
[340050517,1728397442664,180.86,0.00010191,2]
[340050518,1728397442996,180.86,0.00010194,2]